Cogmind - Beta 15 @@@ ROGUE MODE // 2025.09.05 @ 16:47:08 Player: Nuclear Winter Man Result: Destroyed by G-50 Soldier with Heavy Laser Performance ------------- Evolutions (2) 1000 Regions Visited (5) 1000 Robots Destroyed (14) 70 Value Destroyed (502) 502 Prototype IDs (25) 500 Alien Tech Used (0) 0 Bonus (300) 300 TOTAL SCORE: 3372 Bonus ------- Aligned with FarCom 300 Cogmind --------- Core Integrity 0/550 Matter 218/300 Energy 41/100 System Corruption 42% Temperature Cool (61) Movement Walking (200) Ox1 Location -8/Materials Parts ------- > --- POWER (3) -------- (None) > --- PROPULSION (3) --- Titanium Leg > --- UTILITY (3) ------ (None) > --- WEAPON (2) ------- Firepult > --- INVENTORY (5) ---- (None) Peak State ------------ > --- POWER ------------ (None) > --- PROPULSION ------- Titanium Leg > --- UTILITY ---------- (None) > --- WEAPON ----------- Firepult > --- INVENTORY -------- (None) [Rating: 23] Favorites ----------- Power Ion Engine Engine Ion Engine Power Core Light Nuclear Core Propulsion Aluminum Leg Leg Aluminum Leg Wheel Wheel Hover Unit Improved Hover Unit Utility Small Storage Unit Device Seismic Detector Storage Small Storage Unit Protection Light Armor Plating Weapon Small Laser Energy Gun Small Laser Energy Cannon Beam Cannon Ballistic Gun Light Assault Rifle Special Weapon Mining Laser Special Melee Weapon Datajack Build | -11 -10 -10 -10 -9 -8 ------- Run | Yrd Mat Min Exi Min Mat Slots Evolved 4 | . . . . . 4 Power 2 | . . . . . 2 Propulsion 1 | . . . . . 1 Utility 1 | . . . . . 1 Weapon . | . . . . . . Parts Attached 29 | 7 4 4 . 6 8 Power 5 | 2 . 1 . 1 1 Engine 4 | 2 . 1 . 1 . Core 1 | . . . . . 1 Reactor . | . . . . . . Propulsion 11 | 2 2 1 . 2 4 Treads . | . . . . . . Leg 8 | 2 2 1 . 2 1 Wheel 2 | . . . . . 2 Hover 1 | . . . . . 1 Flight . | . . . . . . Utility 6 | 1 1 1 . 1 2 Device 4 | . 1 1 . 1 1 Storage 1 | 1 . . . . . Processor . | . . . . . . Hackware . | . . . . . . Protection 1 | . . . . . 1 Artifact . | . . . . . . Weapon 7 | 2 1 1 . 2 1 Energy Gun 1 | . . 1 . . . Energy Cannon 2 | . . . . 1 1 Ballistic Gun 2 | 2 . . . . . Ballistic Cannon . | . . . . . . Launcher . | . . . . . . Special Weapon 1 | . . . . 1 . Impact Weapon . | . . . . . . Slashing Weapon . | . . . . . . Piercing Weapon . | . . . . . . Special Melee Weapon 1 | . 1 . . . . Unidentified Prototypes . | . . . . . . Parts Lost 21 | . . 2 . 5 14 Power 4 | . . 1 . 1 2 Propulsion 7 | . . . . 1 6 Utility 6 | . . 1 . 1 4 Weapon 4 | . . . . 2 2 Highest Loss Streak 6 | . . 2 . 4 6 To Critical Strikes . | . . . . . . Average Backups 5 | 2 6 8 7 5 2 Power 1 | . 1 2 2 1 . Propulsion 2 | 1 2 3 3 2 1 Utility . | . . . . . . Weapon 1 | . 1 2 2 1 . Tool/Special . | . . . . . . Unused Backups 1 | . . . 1 . . Power . | . . . . . . Propulsion . | . . . . . . Utility . | . . . . . . Weapon 1 | . . . 1 . . Tool/Special . | . . . . . . Average Slot Usage (%) 85 | . 99 95 100 88 42 Engine 12 | . 14 11 14 14 4 Leg 24 | . 28 28 28 28 9 Device 10 | . 13 12 14 8 3 Storage 12 | . 14 14 14 14 3 Energy Gun 7 | . . 7 14 8 . Energy Cannon 2 | . . . . 5 5 Ballistic Gun 6 | . 24 20 1 . . Special Weapon 2 | . . . . 4 6 Special Melee Weapon 5 | . 3 . 12 3 . Peak Build Rating 23 | 6 7 8 9 11 23 Average Rating 8 | 4 6 7 8 8 9 On Entrance 6 | . 6 7 8 9 11 Naked Turns 60 | . . . . . 60 Heaviest Build 23 | 13 14 14 11 15 23 Greatest Support 30 | 20 20 20 20 20 30 Greatest Overweight (x) 7 | 3 . . . . 7 Average Overweight (x) . | . . . . . . Largest Inventory Capacity 8 | 8 8 8 8 8 8 Average Capacity 7 | 7 8 8 8 8 6 Most Carried 8 | 4 8 8 8 8 7 Average Carried 6 | 2 6 8 7 6 3 Final Capacity 8 | 8 8 8 8 8 5 Final Carried 8 | 4 8 8 8 8 . Class Distribution -------------------- 55% | Scavenger-Mutant 44% | Mutant Dominant Class ---------------- Mutant | -10/Materials Scavenger-Mutant | -10/Mines Scavenger-Mutant | -10/Exiles Scavenger-Mutant | -9/Mines Mutant | -8/Materials Resources | -11 -10 -10 -10 -9 -8 ----------- Run | Yrd Mat Min Exi Min Mat Matter Collected 557 | 176 249 78 . 54 . Remotely . | . . . . . . Salvage Created 519 | . 285 91 . 76 67 Parts 22 | . 13 6 . 2 1 Haulers Intercepted . | . . . . . . Recyclers Shooed 1 | . 1 . . . . Parts Field Recycled . | . . . . . . Retrieved Matter . | . . . . . . Parts Self-Destructed . | . . . . . . Prevented . | . . . . . . Kills | -11 -10 -10 -10 -9 -8 ------- Run | Yrd Mat Min Exi Min Mat Combat Hostiles Destroyed 14 | . 7 3 . 3 1 Guns 12 | . 7 3 . 2 . Cannons 1 | . . . . 1 . AOE 1 | . . . . . 1 Classes Destroyed 6 | . 1 1 . 2 2 Builder 1 | . . . . . 1 Swarmer 1 | . . 1 . . . Grunt 10 | . 7 2 . 1 . Sentry 1 | . . . . . 1 Demolisher 1 | . . . . 1 . Assembled 1 | . . . . 1 . Best Kill Streak 4 | . 4 2 . 1 2 Combat Bots Only 4 | . 4 2 . 1 1 Max Kills in Single Turn 2 | . 1 1 . 1 2 Gunslinging . | . . . . . . Exploded 1 | . . . . . 1 Melee . | . . . . . . Uniques/NPCs Destroyed . | . . . . . . Combat | -11 -10 -10 -10 -9 -8 -------- Run | Yrd Mat Min Exi Min Mat Hostile Shots Fired 135 | . 28 32 . 41 34 Missed 44 | . 5 9 . 15 15 Hits 91 | . 23 23 . 26 19 Projectile 91 | . 23 23 . 26 19 AOE 3 | . . . . 3 . Critical Strikes 3 | . . . . . 3 Damage Taken 2820 | . 270 299 . 481 1770 Core 781 | . 36 48 . 131 566 Absorbed by Shields . | . . . . . . Core Remaining (%) 57 | 100 . . . 14 . Volleys Fired 102 | . 25 15 . 15 47 Largest 2 | . 2 2 . 2 1 Hottest 250 | . 40 60 . 100 250 Shots Fired 140 | . 46 30 . 17 47 Gun 91 | . 46 30 . 15 . Cannon 5 | . . . . 2 3 Launcher . | . . . . . . Special 44 | . . . . . 44 Kinetic 73 | . 46 27 . . . Thermal 67 | . . 3 . 17 47 Explosive . | . . . . . . Electromagnetic . | . . . . . . Robot Hit Streak 10 | . 9 10 . 3 5 Robot Miss Streak 4 | . 4 4 . 2 1 Penetration Max . | . . . . . . Secondary Targets 2 | . 1 1 . . . Max Gunslinging Chain 1 | . 1 1 . . . Shots Hit Robots 68 | . 36 19 . 11 2 Core Hits 36 | . 16 7 . 7 6 Critical Kills 1 | . . 1 . . . Critical Parts Destroyed . | . . . . . . Critical Strikes 1 | . . 1 . . . Destroy 1 | . . 1 . . . Melee Attacks 10 | . 10 . . . . Impact . | . . . . . . Slashing . | . . . . . . Piercing . | . . . . . . Sneak Attacks 6 | . 6 . . . . Combat Hostiles . | . . . . . . Follow-up Attacks . | . . . . . . Damage Inflicted 831 | . 306 205 . 147 173 Guns 620 | . 306 205 . 109 . Cannons 70 | . . . . 34 36 Explosions 137 | . . . . . 137 Melee . | . . . . . . Ramming 4 | . . . . 4 . Kinetic 499 | . 306 193 . . . Thermal 328 | . . 12 . 143 173 Explosive . | . . . . . . Electromagnetic . | . . . . . . Impact . | . . . . . . Slashing . | . . . . . . Piercing . | . . . . . . Highest Corruption 42 | . 1 1 1 1 42 Average Corruption 5 | . 1 1 1 1 28 Corruption Purged . | . . . . . . Corruption Blocked . | . . . . . . Effects 41 | . 3 2 10 6 20 Message Errors 7 | . 2 . 1 1 3 Matter Fused 9 | . 1 1 1 1 5 Heat Flow Errors 7 | . . 1 2 1 3 Energy Discharges 2 | . . . 1 . 1 Data Loss (minor) 9 | . . . 5 . 4 Data Loss (major) 3 | . . . . . 3 Misfires 1 | . . . . 1 . Alerts 2 | . . . . 2 . Misdirections 1 | . . . . . 1 Overload Shots . | . . . . . . Overflow Damage . | . . . . . . Projectiles . | . . . . . . Explosions . | . . . . . . Melee . | . . . . . . Knockbacks . | . . . . . . Impact . | . . . . . . Kinetic . | . . . . . . Secondary . | . . . . . . Self-Inflicted Damage 57 | . . . . . 57 Shots 5 | . . . . . 5 Rammed . | . . . . . . Targets Rammed 1 | . . . . 1 . Kicked 1 | . . . . 1 . Crushed . | . . . . . . Highest Temperature 337 | . 30 254 132 170 337 Average Temperature 71 | . 9 99 59 67 80 Received Heat Transfer 579 | . 147 156 . 78 198 Effects 1 | . . . . . 1 Energy Bleed 1 | . . . . . 1 Siege Activations . | . . . . . . Martial Activations . | . . . . . . Shielding Activations . | . . . . . . Robots Disrupted . | . . . . . . Combat Hostiles . | . . . . . . Robots Corrupted . | . . . . . . Combat Hostiles . | . . . . . . Parts Fried . | . . . . . . Impact Corruptions . | . . . . . . Robots Melted . | . . . . . . Combat Hostiles . | . . . . . . Parts Melted 4 | . . . . . 4 Heat Transferred 1229 | . . 25 . 324 880 Parts Sabotaged . | . . . . . . Parts Stolen . | . . . . . . Parts Stripped . | . . . . . . Power Chain Reactions . | . . . . . . Alert | -11 -10 -10 -10 -9 -8 ------- Run | Yrd Mat Min Exi Min Mat Maximum Alert Level . | . . . . . . Low Security (%) 100 | 100 100 100 . 100 100 Level 1 . | . . . . . . Level 2 . | . . . . . . Level 3 . | . . . . . . Level 4 . | . . . . . . Level 5 . | . . . . . . High Security . | . . . . . . Max Security . | . . . . . . Peak Influence 107 | . 107 50 . 30 60 Initial 13 | . . 13 . . . Average 14 | . 36 26 . 1 7 Influence Increases 485 | . 177 100 . 50 158 Destroy 0b10 Robot/C 260 | . 140 60 . 40 20 Destroy 0b10 Robot/NC 5 | . . . . . 5 Destroy Leader 60 | . 30 10 . 10 10 Successful Hack 7 | . 7 . . . . Disable Machine 15 | . . . . . 15 Destroy Structure 18 | . . . . . 18 Lose Combat Pursuer 120 | . . 30 . . 90 Influence Decreases 425 | . 142 95 40 50 98 Entered New Map 62 | . . 22 40 . . Time Decay 288 | . 142 60 . 30 56 Lost Part 75 | . . 13 . 20 42 Squads Dispatched 6 | . 5 . . . 1 Investigation 2 | . 2 . . . . Extermination . | . . . . . . Reinforcement 4 | . 3 . . . 1 Assault . | . . . . . . Garrison . | . . . . . . Intercept . | . . . . . . Searches Triggered . | . . . . . . Construction Impeded . | . . . . . . Haulers Reinforced . | . . . . . . Active Scanning Responses . | . . . . . . Cargo Convoy Interrupts . | . . . . . . Stealth | -11 -10 -10 -10 -9 -8 --------- Run | Yrd Mat Min Exi Min Mat Distress Signals 1 | . . . . . 1 Communications Jammed . | . . . . . . Distress Signals . | . . . . . . Times Spotted 36 | . 11 5 . 8 12 Peak Tracking Total 12 | . 5 3 . 12 6 Tactical Retreats 6 | . . 1 . 2 3 Traps | -11 -10 -10 -10 -9 -8 ------- Run | Yrd Mat Min Exi Min Mat Traps Triggered 1 | . 1 . . . . Indirectly . | . . . . . . Trap Hack Attempts . | . . . . . . Triggered . | . . . . . . Disarmed . | . . . . . . Reprogrammed . | . . . . . . Reused . | . . . . . . Traps Extracted . | . . . . . . Installed . | . . . . . . Triggered . | . . . . . . Machines | -11 -10 -10 -10 -9 -8 ---------- Run | Yrd Mat Min Exi Min Mat Machines Disabled 1 | . . . . . 1 Max in Single Turn 1 | . . . . . 1 Machines Repaired . | . . . . . . Machines Dismantled . | . . . . . . Machines Sabotaged . | . . . . . . Overloaded Fab Kills . | . . . . . . Hacking | -11 -10 -10 -10 -9 -8 --------- Run | Yrd Mat Min Exi Min Mat Machines Accessed 7 | . 2 . 5 . . Terminals 2 | . 2 . . . . Fabricators . | . . . . . . Repair Stations . | . . . . . . Recycling Units . | . . . . . . Scanalyzers . | . . . . . . Garrison Access . | . . . . . . Total Hacks 58 | . 8 . 50 . . Successful 55 | . 5 . 50 . . Failed 3 | . 3 . . . . Catastrophic 1 | . 1 . . . . Database Lockouts . | . . . . . . Manual 2 | . . . 2 . . Terminals 8 | . 8 . . . . Fabricators . | . . . . . . Repair Stations . | . . . . . . Recycling Units . | . . . . . . Scanalyzers . | . . . . . . Garrison Access . | . . . . . . Terminal Hacks 55 | . 5 . 50 . . Record 50 | . 1 . 49 . . Prototype ID Bank 1 | . 1 . . . . Alert Level 1 | . 1 . . . . Maintenance Status 1 | . 1 . . . . Zone Layout 1 | . 1 . . . . Proto ID Catalog 1 | . . . 1 . . Fabricator Hacks . | . . . . . . Repair Station Hacks . | . . . . . . Recycling Unit Hacks . | . . . . . . Scanalyzer . | . . . . . . Garrison Access Hacks . | . . . . . . Unauthorized Hacks . | . . . . . . Terminals . | . . . . . . Fabricators . | . . . . . . Repair Stations . | . . . . . . Recycling Units . | . . . . . . Scanalyzers . | . . . . . . Garrison Access . | . . . . . . Data Cores Recovered . | . . . . . . Used . | . . . . . . Hacking Detections 1 | . 1 . . . . Full Trace Events 1 | . 1 . . . . Feedback Events 1 | . 1 . . . . Corruption 1 | . 1 . . . . Feedback Blocked . | . . . . . . Robot Schematics Acquired . | . . . . . . Robots Built . | . . . . . . Authchips . | . . . . . . Time . | . . . . . . Total Robot Build Rating . | . . . . . . Part Schematics Acquired . | . . . . . . Parts Built . | . . . . . . Authchips . | . . . . . . Time . | . . . . . . Total Part Build Rating . | . . . . . . Parts Repaired . | . . . . . . Time . | . . . . . . Parts Recycled . | . . . . . . Recycled Matter . | . . . . . . Retrieved Matter . | . . . . . . Retrieved Components . | . . . . . . Parts Scanalyzed . | . . . . . . Part Schematics Acquired . | . . . . . . Parts Damaged . | . . . . . . Bothacking | -11 -10 -10 -10 -9 -8 ------------ Run | Yrd Mat Min Exi Min Mat Used RIF Installer . | . . . . . . Robots Hacked 3 | . 3 . . . . Non-combat 2 | . 2 . . . . Combat 1 | . 1 . . . . Robot Hacks Applied 5 | . 5 . . . . parse_system 3 | . 3 . . . . no_distress 2 | . 2 . . . . Relay Couplers Released . | . . . . . . Fabnet Peak Effective % . | . . . . . . Robots Rewired . | . . . . . . Allies Hacked . | . . . . . . Hacks Repelled . | . . . . . . Allies | -11 -10 -10 -10 -9 -8 -------- Run | Yrd Mat Min Exi Min Mat Total Allies . | . . . . . . Largest Group . | . . . . . . Highest-Rated Group . | . . . . . . Highest-Rated Ally . | . . . . . . Total Orders . | . . . . . . Ally Attacks . | . . . . . . Total Damage . | . . . . . . Kills . | . . . . . . Allies Corrupted . | . . . . . . Allies Melted . | . . . . . . Intel | -11 -10 -10 -10 -9 -8 ------- Run | Yrd Mat Min Exi Min Mat Active Infowar (turns) 1499 | . 443 121 790 145 . Sensors 458 | . 443 15 . . . Seismic 1041 | . . 106 790 145 . Robot Analysis Total . | . . . . . . Derelict Logs Recovered 1 | . . . . 1 . Drone Launches . | . . . . . . Drone Recoveries . | . . . . . . Exploration | -11 -10 -10 -10 -9 -8 ------------- Run | Yrd Mat Min Exi Min Mat Turns Passed 2564 | 69 467 145 790 619 474 Spaces Moved 1763 | 43 312 80 649 477 202 Core 97 | 11 . . . . 86 Treads . | . . . . . . Legs 1642 | 32 312 80 649 477 92 Wheels 7 | . . . . . 7 Hover 17 | . . . . . 17 Flight . | . . . . . . Fastest Speed 50 | 50 120 120 120 120 50 Average Speed 116 | 129 120 120 120 120 91 Slowest Speed 400 | 200 120 120 120 120 400 Overloaded Moves . | . . . . . . Propulsion Burnouts . | . . . . . . Robots Hopped . | . . . . . . Potential Cave-ins 40 | . . . . . 40 Cave-ins Triggered 7 | . . . . . 7 Exploration Rate (%) 37 | 3 45 11 74 77 15 Regions Visited 5 Branch Regions 3 Pre-discovered Areas 2 | . . . 1 1 . Known Exits Taken . | . . . . . . Unknown Exits Taken 5 | 1 1 1 1 1 . Scrap Searched 1 | . . . . 1 . Spaces Dug 56 | . . . . . 56 Terrain Destroyed 69 | . . . . . 69 Melee . | . . . . . . Projectile 46 | . . . . . 46 AOE 23 | . . . . . 23 Terrain Rammed . | . . . . . . Walls Destroyed . | . . . . . . Machines Disabled . | . . . . . . Actions | -11 -10 -10 -10 -9 -8 --------- Run | Yrd Mat Min Exi Min Mat Total 2040 | 54 360 102 661 506 357 Wait 99 | . . . . 5 94 Move 1757 | 42 311 79 648 476 201 Hop . | . . . . . . Pick Up 17 | 5 5 1 2 3 1 Fast Attach 9 | 4 . 3 . 1 1 Attach 20 | 2 3 . 1 4 10 Detach 4 | . 2 . . . 2 Swap 5 | 1 2 1 . 1 . Drop 8 | . 2 3 3 . . Fire 102 | . 25 15 . 15 47 Melee 10 | . 10 . . . . Ram . | . . . . . . Kick 1 | . . . . 1 . Crush . | . . . . . . Escape Stasis 1 | . . . . . 1 Rewire 7 | . . . 7 . . Trap . | . . . . . . Miscellaneous . | . . . . . . Route ------- -11/Scrapyard -10/Materials -10/Mines -10/Exiles (discovered 2 exits: [*Min x2]) -9/Mines -8/Materials History --------- Turn | Location | Event 2 | -11/Scrapyard | Met Revision 17 27 | -11/Scrapyard | Discovered new exit (range 15) 70 | -11/Scrapyard | Entered Materials 302 | -10/Materials | Discovered new exit (range 12) 308 | -10/Materials | Build established: Mutant 537 | -10/Materials | Entered Mines 614 | -10/Mines | Deemed a non-threat by the Exiles lab entrance 614 | -10/Mines | Discovered new exit (range 5) 682 | -10/Mines | Entered Exiles 705 | -10/Exiles | Discovered new exit (range 15) 723 | -10/Exiles | Met 8R-AWN 747 | -10/Exiles | Met EX-HEX 840 | -10/Exiles | Met EX-DEC 866 | -10/Exiles | Build established: Scavenger-Mutant 889 | -10/Exiles | Learned location of Zion (-6) 948 | -10/Exiles | Discovered new exit (range 12) 1060 | -10/Exiles | Met EX-BIN 1092 | -10/Exiles | Aligned with FarCom system 1093 | -10/Exiles | Given EX-Vault access code 1145 | -10/Exiles | Opened EX-Vault 1164 | -10/Exiles | Found Firepult 1224 | -10/Exiles | Warned to stay clear of 0b10 Research branches 1472 | -10/Exiles | Left Exiles lab with Firepult 1472 | -10/Exiles | Entered Mines 1572 | -9/Mines | Assembled infested the area 1639 | -9/Mines | Core integrity fell below 50% 1674 | -9/Mines | Lost 4 parts (1p1n1u1w) 1845 | -9/Mines | Core integrity fell below 20% 2079 | -9/Mines | Discovered new exit (range 8) 2091 | -9/Mines | Entered Materials 2091 | -8/Materials | Evolved 4 slots: Power x2, Propulsion x1, Utility x1 2201 | -8/Materials | Crushed by falling debris 2216 | -8/Materials | Crushed by falling debris 2247 | -8/Materials | Lost 4 parts (2n2u) 2288 | -8/Materials | Crushed by falling debris 2288 | -8/Materials | System corruption reached 10% 2343 | -8/Materials | Crushed by falling debris 2343 | -8/Materials | Core integrity fell below 50% 2344 | -8/Materials | Crushed by falling debris 2345 | -8/Materials | System corruption reached 30% 2375 | -8/Materials | Lost 6 parts (1p3n1u1w) 2459 | -8/Materials | Crushed by falling debris 2471 | -8/Materials | Crushed by falling debris 2476 | -8/Materials | Core integrity fell below 20% 2526 | -8/Materials | Build established: Mutant 2565 | -8/Materials | Destroyed by G-50 Soldier with Heavy Laser Last Messages --------------- 02505_ Acquired Imp. Hover Unit. 02516_ System corrupted: Matter fused (-9). 02516_ Imp. Hover Unit destroyed. 02517_ U-05 Engineer lays Concrete. 02532_ System corrupted: Substantial component data lost. 02536_ Connecting with Terminal... 02536_ Current location identified: Materials 02547_ System corrupted: Substantial component data lost. 02553_ Atomic Centrifuge disabled. 02553_ G-47 Trooper overheating. 02554_ G-47 Trooper heat damages Particle Gun. 02554_ G-47 Trooper overheating. 02555_ Overheating: Energy bleed (-9). 02560_ U-05 Engineer lays Concrete. 02560_ K-01 Serf collects debris. 02562_ U-05 Engineer lays Concrete. 02562_ Critical hit (Burn: +37). 02563_ U-05 Engineer lays Concrete. 02564_ System corrupted: Component data lost. 02564_ Critical hit (Burn: +37). Map ----- +----------------------------------------------------+ | | | | | | | | | | | ???????????##########?#####???#??????????????????? | | ??????????# # #??????????????????? | | ??????????# [ # [#??????????????????? | | ####??????# # """ """ #??????????????????? | | ########! """ # """"""""" #??????????????????? | | # """ # """"" #??????????????????? | | + """ #? ????????????????????? | | # #??? ???Y??????????????????? | | !########"" #???##+#########???????????????? | | "####?????#"T #???# + #???????????????? | | #?????#"" ##### # T #???????????????? | | """ #?????# + g # #???????????????? | | """ #?????############# ^ #???????????????? | | """ #?????????????????# g #???????????????? | | #?????????????????#ggg #???????????????? | | #?????????????????# u "" #???????????????? | | #####?????????????????# "" #???????????????? | | ??????????????????????# "" #???????????????? | | ??????????????????????# # #???????????????? | | ??????????????????????# # #???????????????? | | ??????????????????????# @# #???????????????? | | ??????????????????????# ########???????????????? | | ??????????????????????# #??????????????????????? | | ????????????????????? h ??????????????????????? | | ???????????????????? ??????????????????????? | | ??????????????????? ??????????????????????? | | ?????????????????? #######+??????????????????????? | | ????????????????? ???????????????????????????????? | | ???????????????#k????????????????????????????????? | | ???????????????#?????????????????????????????????? | | ?????????????????????????????????????????????????? | | ?????????????????????????????????????????????????? | | ?????????????????????????????????????????????????? | | ?????????????????????????????????????????????????? | | ?????????????????????????????????????????????????? | | ?????????????????????????????????????????????????? | | ?????????????????????????????????????????????????? | | ?????????????????????????????????????????????????? | | ?????????????????????????????????????????????????? | | ?????????????????????????????????????????????????? | | ?????????????????????????????????????????????????? | | ?????????????????????????????????????????????????? | | ?????????????????????????????????????????????????? | | ?????????????????????????????????????????????????? | | ?????????????????????????????????????????????????? | +----------------------------------------------------+ Best States ------------- Heat Dissipation 53 Energy Generation 19 Energy Capacity 310 Matter Stores 300 Matter Capacity 300 Sight Range 16 Robot Scan Range 14 Terrain Scan Density 10 Armor Coverage 150 Evasion (%) 55 Item Schematics ----------------- None Robot Schematics ------------------ None Fabricated ------------ Nothing Repaired ---------- Nothing Alien Tech Used ----------------- None Achievements -------------- I Survived The Infestation Librarian Unlikely Earthworm Challenges ------------ None Game ------ Seed TransdimensionalDataArmor Manual? 0 Play Time 00:33:57 Cumulative 12.1 hours Start 2025.09.05 @ 15:59:17 End 2025.09.05 @ 16:47:08 Sessions 1 Manual Loads 0 Difficulty Rogue Special Mode None Game No. 19 Rogue 19 Adventurer 0 Explorer 0 Win Type - Total 0 Types 0/0/0/0/0/0/0/0/0/0 Lore% 8 Gallery% 12 Achievement% 16 Wizard Run 0 Options --------- Layout 1 ASCII 0 Keyboard 1 Movement Vi Keybinds 0 Fullscreen 0 Font 40/SmallcapsGlow Map View 59x39 Zoom Use 0% Tactical HUD 1 Map Filters NONE Filters NONE Steam X RUN: 9b38d8b3-93a5-40e3-bfe3-7b610400242f